Workbook

Sheet Start
B1: OM DENNE MALEN
B2: Bruk denne Arrangementsbudsjett-arbeidsboken til å spore påløpte utgifter og inntekter i løpet av et arrangement.
B3: Fyll ut arrangementsnavn og skriv inn detaljer i tabellene i Utgifter- og Inntekter-regnearket.
B4: Totale utgifter og Totale inntekter beregnes automatisk.
B5: Fortjeneste og tap-sammendrag og diagram oppdateres automatisk i regnearket Fortjeneste og tap – sammendrag.
B6: Obs!
B7: Flere instruksjoner finnes i kolonne A i hvert regneark. Denne teksten er med hensikt skjult. Hvis du vil fjerne teksten, velger du kolonne A og deretter SLETT. Hvis du vil vise teksten, velger du kolonne A og endrer deretter skriftfarge.
B8: Hvis du vil finne ut mer om tabeller, trykker du på SKIFT og deretter på F10 i en tabell. Velg alternativet TABELL, og velg deretter ALTERNATIV TEKST.

Sheet Utgifter
A1: Skriv inn beregnet og faktisk utgifter for hver kategori i de respektive tabellene i dette regnearket, og arrangementsnavn i celle D1 for å tilpasse tittelen for dette og andre regneark. Undertittelen på dette regnearket vises i celle H1. Du finner nyttige instruksjoner om hvordan du bruker dette regnearket, i cellene i denne kolonnen. Neste instruksjon finnes i celle A3. | B1: Arrangementsbudsjett for hendelsesnavn | H1: UTGIFTER
A3: Totale utgifter-etiketten er i cellen til høyre, Beregnet-etiketten i celle G3 og Faktisk-etiketten er i H3. | B3: TOTALE UTGIFTER | G3: Beregnet | H3: Faktisk
A4: Totalt beregnede utgifter i celle G4 og totalt faktiske utgifter i H4 beregnes automatisk. Neste instruksjon finnes i celle A6. | G4: =SUM(C11,C19,C25,C32,G11,G19,G24) -> kr 882.00 | H4: =SUM(D11,D19,D25,D32,H11,H19,H24) -> kr 333.00
A6: Skriv inn stedsutgifter i tabellen som starter i cellen til høyre, og forfriskningsutgifter i tabellen som starter i celle F6. Neste instruksjon er i celle A13. | B6: Sted | C6: Beregnet | D6: Faktisk | F6: Forfriskninger | G6: Estimert | H6: Faktisk
B7: Utgifter for lokaler | C7: kr 500.00 | F7: Mat
B8: Stedspersonale | F8: Drikke | G8: kr 20.00
B9: Utstyr | F9: Duker | H9: kr 20.00
B10: Bord og stoler | F10: Ansatte og tips
B11: Totalt | C11: =SUBTOTAL(109,Stedsutgifter[Beregnet]) -> kr 500.00 | D11: =SUBTOTAL(109,Stedsutgifter[Faktisk]) -> kr 0.00 | F11: Totalt | G11: =SUBTOTAL(109,Forfriskningsutgifter[Estimert]) -> kr 20.00 | H11: =SUBTOTAL(109,Forfriskningsutgifter[Faktisk]) -> kr 20.00
A13: Skriv inn dekorasjonsutgifter i tabellen som starter i cellen til høyre, og programutgifter i tabellen som starter i celle F13. Neste instruksjon finnes i celle A21. | B13: Dekorasjoner | C13: Estimert | D13: Faktisk | F13: Program | G13: Estimert | H13: Faktisk
B14: Blomster | C14: kr 200.00 | D14: kr 300.00 | F14: Underholdning
B15: Lys | F15: Talere | G15: kr 30.00
B16: Belysning | F16: Reise
B17: Ballonger | F17: Hotell
B18: Papirrekvisita | F18: Annet
B19: Totalt | C19: =SUBTOTAL(109,Dekorasjonsutgifter[Estimert]) -> kr 200.00 | D19: =SUBTOTAL(109,Dekorasjonsutgifter[Faktisk]) -> kr 300.00 | F19: Totalt | G19: =SUBTOTAL(109,Programutgifter[Estimert]) -> kr 30.00 | H19: =SUBTOTAL(109,Programutgifter[Faktisk]) -> kr 0.00
A21: Skriv inn publisitetsutgifter i tabellen som starter i cellen til høyre, og premieutgifter i tabellen som starter i celle F21. Neste instruksjon finnes i celle A27. | B21: Publisitet | C21: Estimert | D21: Faktisk | F21: Premier | G21: Beregnet | H21: Faktisk
B22: Grafikkarbeid | F22: Bånd/plaketter/pokaler
B23: Kopiering/utskrift | C23: kr 20.00 | F23: Gaver | G23: kr 100.00
B24: Porto | F24: Totalt | G24: =SUBTOTAL(109,Premieutgifter[Beregnet]) -> kr 100.00 | H24: =SUBTOTAL(109,Premieutgifter[Faktisk]) -> kr 0.00
B25: Totalt | C25: =SUBTOTAL(109,Publisitetsutgifter[Estimert]) -> kr 20.00 | D25: =SUBTOTAL(109,Publisitetsutgifter[Faktisk]) -> kr 0.00
A27: Skriv inn diverse utgifter i tabell fra cellen til høyre. | B27: Diverse | C27: Estimert | D27: Faktisk
B28: Telefon | D28: kr 13.00
B29: Transport | C29: kr 12.00
B30: Skrivepapir
B31: Fakstjenester
B32: Totalt | C32: =SUBTOTAL(109,DiverseUtgifter[Estimert]) -> kr 12.00 | D32: =SUBTOTAL(109,DiverseUtgifter[Faktisk]) -> kr 13.00

Sheet Inntekter
A1: Skriv inn beregnet og faktisk inntekter fra hver kategori i de respektive tabellene i dette regnearket. Tittelen på dette regnearket oppdateres automatisk i cellen til høyre. Undertittelen er i celle G1. Du finner nyttige instruksjoner om hvordan du bruker dette regnearket, i cellene i denne kolonnen. Neste instruksjon finnes i celle A3. | B1: =Utgifter!B1 -> Arrangementsbudsjett for hendelsesnavn | G1: INNTEKTER
A3: Totale inntekter-etiketten er i cellen til høyre, Beregnet-etiketten i celle F3 og Faktisk-etiketten er i G3. | B3: TOTALE INNTEKTER | F3: Beregnet | G3: Faktisk
A4: Totalt beregnede inntekter beregnes automatisk i celle F4 og totalt faktiske inntekter i G4. | F4: =SUM(Adgang[[#Totals],[Beregnet inntekt]],AnnonserIProgrammet[[#Totals],[Beregnet inntekt]],UtstillereOgLeverandører[[#Totals],[Beregnet inntekt]],SalgAvElement[[#Totals],[Beregnet inntekt]]) -> kr 1,936.00 | G4: =SUM(Adgang[[#Totals],[Faktisk inntekt]],AnnonserIProgrammet[[#Totals],[Faktisk inntekt]],UtstillereOgLeverandører[[#Totals],[Faktisk inntekt]],SalgAvElement[[#Totals],[Faktisk inntekt]]) -> kr 1,831.00
A5: Adgang-etiketten finnes i cellen til høyre. | B5: ADGANG
A6: Skriv inn beregnet og faktisk antall gjester med billettsatser i tabellen som begynner i cellen til høyre. Beregnede og faktiske inntekter fra adgang beregnes automatisk. Neste instruksjon finnes i celle A11. | B6: BEREGNET ANT. | C6: Faktisk ant. | D6: Type | E6: Pris | F6: Beregnet inntekt | G6: Faktisk inntekt
B7: 300 | C7: 278 | D7: Voksne @ | E7: kr 5.00 | F7: =B7*E7 -> kr 1,500.00 | G7: =C7*E7 -> kr 1,390.00
B8: 197 | C8: 195 | D8: Barn @ | E8: kr 2.00 | F8: =B8*E8 -> kr 394.00 | G8: =C8*E8 -> kr 390.00
B9: 42 | C9: 51 | D9: Annet @ | E9: kr 1.00 | F9: =B9*E9 -> kr 42.00 | G9: =C9*E9 -> kr 51.00
B10: Totalt | F10: =SUBTOTAL(109,Adgang[Beregnet inntekt]) -> kr 1,936.00 | G10: =SUBTOTAL(109,Adgang[Faktisk inntekt]) -> kr 1,831.00
A11: Etiketten for annonser i programmet finnes i cellen til høyre. | B11: ANNONSER I PROGRAMMET
A12: Skriv inn beregnet og faktisk antall annonser i programmet og annonsesatser i tabellen som begynner i cellen til høyre. Beregnede og faktiske inntekter fra annonser beregnes automatisk. Neste instruksjon er i celle A17. | B12: BEREGNET ANT. | C12: Faktisk ant. | D12: Type | E12: Pris | F12: Beregnet inntekt | G12: Faktisk inntekt
B13: 12 | D13: For- og baksider @ | F13: =B13*E13 -> kr 0.00 | G13: =C13*E13 -> kr 0.00
C14: 158 | D14: Halvsider @ | F14: =B14*E14 -> kr 0.00 | G14: =C14*E14 -> kr 0.00
B15: 4 | D15: Kvartsider @ | F15: =B15*E15 -> kr 0.00 | G15: =C15*E15 -> kr 0.00
B16: Totalt | F16: =SUBTOTAL(109,AnnonserIProgrammet[Beregnet inntekt]) -> kr 0.00 | G16: =SUBTOTAL(109,AnnonserIProgrammet[Faktisk inntekt]) -> kr 0.00
A17: Etikett for utstillere eller leverandører er i cellen til høyre. | B17: UTSTILLERE/LEVERANDØRER
A18: Skriv inn beregnet og faktisk antall utstillere og leverandører og standsatser i tabellen som begynner i cellen til høyre. Beregnede og faktiske inntekter beregnes automatisk. Neste instruksjon finnes i celle A23. | B18: BEREGNET ANT. | C18: Faktisk ant. | D18: Type | E18: Pris | F18: Beregnet inntekt | G18: Faktisk inntekt
B19: 23 | D19: Store stand @ | F19: =B19*E19 -> kr 0.00 | G19: =C19*E19 -> kr 0.00
B20: 354 | D20: Middels stand @ | F20: =B20*E20 -> kr 0.00 | G20: =C20*E20 -> kr 0.00
B21: 56 | D21: Små stand @ | F21: =B21*E21 -> kr 0.00 | G21: =C21*E21 -> kr 0.00
B22: Totalt | F22: =SUBTOTAL(109,UtstillereOgLeverandører[Beregnet inntekt]) -> kr 0.00 | G22: =SUBTOTAL(109,UtstillereOgLeverandører[Faktisk inntekt]) -> kr 0.00
A23: Etiketten for salg av elementer finnes i cellen til høyre. | B23: SALG AV ELEMENT
A24: Skriv inn beregnet og faktisk antall elementer solgt og elementsatser i tabellen som begynner i cellen til høyre. Beregnede og faktiske inntekter beregnes automatisk. | B24: BEREGNET ANT. | C24: Faktisk ant. | D24: Type | E24: Pris | F24: Beregnet inntekt | G24: Faktisk inntekt
D25: Elementer @ | F25: =B25*E25 -> kr 0.00 | G25: =C25*E25 -> kr 0.00
B26: 123 | D26: Elementer @ | F26: =B26*E26 -> kr 0.00 | G26: =C26*E26 -> kr 0.00
D27: Elementer @ | F27: =B27*E27 -> kr 0.00 | G27: =C27*E27 -> kr 0.00
B28: 13 | D28: Elementer @ | F28: =B28*E28 -> kr 0.00 | G28: =C28*E28 -> kr 0.00
B29: Totalt | F29: =SUBTOTAL(109,SalgAvElement[Beregnet inntekt]) -> kr 0.00 | G29: =SUBTOTAL(109,SalgAvElement[Faktisk inntekt]) -> kr 0.00

Sheet Fortjeneste og tap – sammendrag
A1: Fortjeneste og tap-sammendrag og diagram som viser totale inntekter og utgifter, oppdateres automatisk i dette regnearket. Tittelen på dette regnearket oppdateres automatisk i cellen til høyre. Undertittelen er i celle G1 og G2. Du finner nyttige instruksjoner om hvordan du bruker dette regnearket, i cellene i denne kolonnen. Neste instruksjon finnes i celle A3. | B1: =Utgifter!B1 -> Arrangementsbudsjett for hendelsesnavn | G1: FORTJENESTE
G2: Tapssammendrag
A3: Stolpediagram som sammenligner beregnede inntekter og utgifter og faktiske inntekter og utgifter, er i celle E3. | E3: Stolpediagram som viser sammenligning av estimerte inntekter og utgifter og faktiske inntekter og utgifter, er i denne cellen.
A4: Sammendragstabellen som starter i cellen til høyre, oppdateres automatisk Neste instruksjon er i celle A8. | B4: Totalt | C4: Beregnet | D4: Faktisk
B5: Totale inntekter | C5: =Inntekter!F4 -> kr 1,936.00 | D5: =Inntekter!G4 -> kr 1,831.00
B6: Totale utgifter | C6: =Utgifter!G4 -> kr 882.00 | D6: =Utgifter!H4 -> kr 333.00
A8: Beregnet total fortjeneste og tap beregnes automatisk i celle C8 og faktisk total fortjeneste eller tap i celle D8. | B8: Total fortjeneste (eller tap) | C8: =C5-C6 -> kr 1,054.00 | D8: =D5-D6 -> kr 1,498.00
